fUST/lending_fUST_20250709
["ID","MTS","AMOUNT","RATE_DAILY","PERIOD"]
[370454304,1752024663770,-460.0,0.00020821,2]
[370454305,1752024663780,-460.0,0.00020821,2]
[370454306,1752024663790,-460.0,0.00020821,2]
[370454307,1752024663802,-460.0,0.00020821,2]
[370454309,1752024663813,-460.0,0.00020821,2]
[370454311,1752024663823,-460.0,0.00020821,2]
[370454313,1752024663832,-460.0,0.00020821,2]
[370454315,1752024663842,-460.0,0.00020821,2]
[370454317,1752024663851,-460.0,0.00020821,2]
[370454319,1752024663861,-460.0,0.00020821,2]
[370454321,1752024663871,-460.0,0.00020821,2]
[370454323,1752024663881,-486.41,0.00020821,2]
[370454325,1752024663890,-460.0,0.00020821,2]
[370454327,1752024663900,-460.0,0.00020821,2]
[370454329,1752024663911,-460.0,0.00020821,2]
[370454331,1752024663920,-460.0,0.00020821,2]
[370454333,1752024663929,-460.0,0.00020821,2]
[370454335,1752024663939,-460.0,0.00020821,2]
[370454337,1752024663950,-460.0,0.00020821,2]
[370454339,1752024663959,-460.0,0.00020821,2]
[370454341,1752024663969,-181.97164219,0.00020821,2]
[370454343,1752024663978,-627.39,0.00020821,2]
[370454345,1752024663988,-460.0,0.00020821,2]
[370454347,1752024663997,-626.6,0.00020821,2]
[370454349,1752024664007,-460.0,0.00020821,2]
[370454351,1752024664017,-526.95,0.00020821,2]
[370454353,1752024664027,-460.0,0.00020821,2]
[370454355,1752024664037,-460.0,0.00020821,2]
[370454357,1752024664046,-460.0,0.00020821,2]
[370454359,1752024664056,-460.0,0.00020821,2]
[370454361,1752024664066,-163.51463,0.00020821,2]
[370454363,1752024664075,-460.0,0.00020821,2]
[370454365,1752024664085,-460.0,0.00020821,2]
[370454367,1752024664095,-460.0,0.00020821,2]
[370454369,1752024664105,-460.0,0.00020821,2]
[370454371,1752024664115,-460.0,0.00020821,2]
[370454373,1752024664125,-460.0,0.00020821,2]
[370454375,1752024664134,-517.5,0.00020821,2]
[370454377,1752024664144,-460.0,0.00020821,2]
[370454379,1752024664154,-151.0,0.00020821,2]
[370454381,1752024664163,-582.79131054,0.00020821,2]
[370454383,1752024664173,-230.31533964,0.00020821,2]
[370454385,1752024664187,-839.54,0.00020821,2]
[370454387,1752024664197,-460.0,0.00020821,2]
[370454389,1752024664206,-151.0,0.00020821,2]
[370454391,1752024664215,-1266.12,0.00020821,2]
[370454393,1752024664225,-460.0,0.00020821,2]
[370454395,1752024664234,-460.0,0.00020821,2]
[370454397,1752024664244,-460.0,0.00020821,2]
[370454399,1752024664253,-650.33,0.00020821,2]
[370454401,1752024664262,-460.0,0.00020821,2]
[370454403,1752024664272,-460.0,0.00020821,2]
[370454405,1752024664282,-476.03,0.00020821,2]
[370454407,1752024664291,-460.0,0.00020821,2]
[370454409,1752024664300,-460.0,0.00020821,2]
[370454411,1752024664309,-984.36,0.00020821,2]
[370454412,1752024664318,-1837.66,0.00020821,2]
[370454414,1752024664327,-460.0,0.00020821,2]
[370454416,1752024664336,-460.0,0.00020821,2]
[370454418,1752024664346,-1105.11,0.00020821,2]
[370454419,1752024664355,-2659.58,0.00020821,2]
[370454420,1752024664365,-460.0,0.00020821,2]
[370454421,1752024664374,-460.0,0.00020821,2]
[370454422,1752024664384,-460.0,0.00020821,2]
[370454423,1752024664394,-460.0,0.00020821,2]
[370454424,1752024664403,-653.37,0.00020821,2]
[370454425,1752024664413,-460.0,0.00020821,2]
[370454426,1752024664423,-460.0,0.00020821,2]
[370454427,1752024664433,-916.57,0.00020821,2]
[370454428,1752024664444,-460.0,0.00020821,2]
[370454429,1752024664453,-3869.4,0.00020821,2]
[370454430,1752024664462,-460.0,0.00020821,2]
[370454431,1752024664472,-460.0,0.00020821,2]
[370454432,1752024664483,-460.0,0.00020821,2]
[370454433,1752024664493,-460.0,0.00020821,2]
[370454434,1752024664502,-460.0,0.00020821,2]
[370454435,1752024664512,-460.0,0.00020821,2]
[370454436,1752024664521,-460.0,0.00020821,2]
[370454437,1752024664530,-460.0,0.00020821,2]
[370454438,1752024664539,-460.0,0.00020821,2]
[370454439,1752024664549,-575.59,0.00020821,2]
[370454440,1752024664558,-460.0,0.00020821,2]
[370454441,1752024664567,-460.0,0.00020821,2]
[370454442,1752024664577,-319.81666574,0.00020821,2]
[370454443,1752024664586,-1799.14,0.00020821,2]
[370454444,1752024664595,-655.47,0.00020821,2]
[370454445,1752024664605,-460.0,0.00020821,2]
[370454446,1752024664615,-460.0,0.00020821,2]
[370454447,1752024664624,-460.0,0.00020821,2]
[370454448,1752024664635,-460.0,0.00020821,2]
[370454449,1752024664645,-460.0,0.00020821,2]
[370454450,1752024664655,-460.0,0.00020821,2]
[370454451,1752024664665,-848.32,0.00020821,2]
[370454452,1752024664675,-460.0,0.00020821,2]
[370454453,1752024664684,-506.03649688,0.00020821,2]
[370454454,1752024664694,-2026.08,0.00020821,2]
[370454455,1752024664703,-180.41613877,0.00020821,2]
[370454456,1752024664713,-460.0,0.00020821,2]
[370454457,1752024664722,-1189.31,0.00020821,2]
[370454458,1752024664732,-460.0,0.00020821,2]
[370454459,1752024664741,-460.0,0.00020821,2]
[370454460,1752024664751,-1728.35,0.00020821,2]
[370454461,1752024664764,-460.0,0.00020821,2]
[370454462,1752024664774,-1151.81,0.00020821,2]
[370454463,1752024664783,-460.0,0.00020821,2]
[370454464,1752024664793,-460.0,0.00020821,2]
[370454465,1752024664802,-460.0,0.00020821,2]
[370454466,1752024664811,-619.45,0.00020821,2]
[370454467,1752024664821,-1568.77,0.00020821,2]
[370454468,1752024664831,-460.0,0.00020821,2]
[370454469,1752024664840,-350.0,0.00020821,2]
[370454470,1752024664849,-460.0,0.00020821,2]
[370454471,1752024664859,-460.0,0.00020821,2]
[370454472,1752024664953,-460.0,0.00020821,2]
[370454473,1752024664963,-1087.45,0.00020821,2]
[370454474,1752024664973,-460.0,0.00020821,2]
[370454475,1752024664983,-241.15354051,0.00020821,2]
[370454476,1752024664992,-460.0,0.00020821,2]
[370454477,1752024665002,-460.0,0.00020821,2]
[370454478,1752024665014,-460.0,0.00020821,2]
[370454479,1752024665024,-1151.74,0.00020821,2]
[370454480,1752024665033,-460.0,0.00020821,2]
[370454481,1752024665043,-460.0,0.00020821,2]
[370454482,1752024665052,-460.0,0.00020821,2]
[370454483,1752024665062,-1034.12,0.00020821,2]
[370454484,1752024665071,-460.0,0.00020821,2]
[370454485,1752024665081,-460.0,0.00020821,2]
[370454486,1752024665091,-460.0,0.00020821,2]
[370454487,1752024665101,-460.0,0.00020821,2]
[370454488,1752024665110,-460.0,0.00020821,2]
[370454489,1752024665120,-3362.94,0.00020821,2]
[370454490,1752024665130,-460.0,0.00020821,2]
[370454491,1752024665139,-501.77,0.00020821,2]
[370454492,1752024665150,-709.81,0.00020821,2]
[370454493,1752024665159,-460.0,0.00020821,2]
[370454494,1752024665168,-460.0,0.00020821,2]
[370454495,1752024665180,-500.0,0.00020822,2]
[370454496,1752024665190,-264.95655386,0.00020822,2]
[370454497,1752024665199,-151.0,0.00020822,2]
[370454498,1752024665209,-151.0,0.00020822,2]
[370454499,1752024665219,-194.68294943,0.00020822,2]
[370454500,1752024665229,-246.8883299,0.00020822,2]
[370454501,1752024665238,-175.6042664,0.00020822,2]
[370454502,1752024665248,-198.0,0.00020822,2]
[370454503,1752024665259,-151.0,0.00020822,2]
[370454504,1752024665268,-198.0,0.00020822,2]
[370454505,1752024665278,-247.62234683,0.00020822,2]
[370454506,1752024665288,-281.90042341,0.00020822,2]
[370454507,1752024665298,-500.0,0.0002085,2]
[370454508,1752024665307,-151.0,0.0002085,2]
[370454509,1752024665318,-151.0,0.0002085,2]
[370454510,1752024665327,-259.98735537,0.0002085,2]
[370454511,1752024665337,-500.0,0.00020854,2]
[370454512,1752024665347,-500.0,0.00020877,2]
[370454513,1752024665357,-245.0,0.00020877,2]
[370454514,1752024665367,-245.0,0.00020877,2]
[370454515,1752024665378,-500.0,0.00020904,2]
[370454516,1752024665387,-151.0,0.00020905,2]
[370454517,1752024665399,-151.0,0.00020905,2]
[370454518,1752024665409,-565.105017,0.00020905,2]
[370454519,1752024665419,-565.105017,0.00020905,2]
[370454520,1752024665428,-500.0,0.00020932,2]
[370454521,1752024665438,-5253.8255359,0.00020934,4]
[370454522,1752024665447,-151.0,0.00020935,2]
[370454523,1752024665457,-151.0,0.00020935,2]
[370454524,1752024665467,-151.0,0.00020935,2]
[370454525,1752024665478,-151.0,0.00020935,2]
[370454526,1752024665487,-500.0,0.0002095,2]
[370454527,1752024665497,-500.0,0.00020959,2]
[370454528,1752024665509,-500.0,0.00020987,2]
[370454529,1752024665531,-500.0,0.00021014,2]
[370454530,1752024665548,-646.0,0.00021031,2]
[370454531,1752024665566,-2153.0,0.00021031,2]
[370454532,1752024665586,-302.522,0.00021031,2]
[370454533,1752024665606,-407.698,0.00021031,2]
[370454534,1752024665624,-970.715,0.00021031,2]
[370454535,1752024665641,-500.0,0.00021041,2]
[370454536,1752024665655,-500.0,0.00021045,2]
[370454537,1752024665674,-547.40128346,0.00021063,2]
[370454538,1752024665694,-500.0,0.00021069,2]
[370454539,1752024665712,-151.0,0.00021072,2]
[370454540,1752024665725,-151.0,0.00021072,2]
[370454541,1752024665745,-151.0,0.00021072,2]
[370454542,1752024665761,-217.980478,0.00021072,2]
[370454543,1752024665776,-217.980478,0.00021072,2]
[370454544,1752024665791,-110.35776478,0.00021072,2]
[370454547,1752024666501,-403.82405465,0.00019177,2]
[370454548,1752024666512,-460.67217515,0.00019178,2]
[370454549,1752024666523,-460.0,0.00019452,2]
[370454550,1752024666533,-230.83161853,0.00019726,2]
[370454551,1752024666546,-233.58704748,0.00019726,2]
[370454552,1752024666561,-202.71076722,0.00021072,2]
[370454553,1752024666582,-313.068532,0.00021072,2]
[370454554,1752024666600,-183.87840555,0.00021095,2]
[370454555,1752024666614,-276.12159445,0.00021095,2]
[370454556,1752024666624,-752.05,0.00021095,2]
[370454557,1752024666633,-460.0,0.00021095,2]
[370454558,1752024666643,-460.0,0.00021095,2]
[370454559,1752024666654,-460.0,0.00021095,2]
[370454560,1752024666665,-460.0,0.00021095,2]
[370454561,1752024666675,-460.0,0.00021095,2]
[370454562,1752024666685,-90.69541181,0.00021095,2]
[370454563,1752024666703,-369.30458819,0.00021095,2]
[370454564,1752024666712,-405.46541181,0.00021095,2]
[370454565,1752024666724,-132.02458819,0.00021095,2]
[370454566,1752024666733,-284.63031517,0.00021095,2]
[370454567,1752024666746,-175.36968483,0.00021095,2]
[370454568,1752024666757,-164.99531517,0.00021095,2]
[370454569,1752024666921,-460.0,0.00019178,2]
[370454570,1752024666931,-183.33393061,0.00019452,2]
[370454572,1752024666942,-111.08864869,0.00019452,2]
[370454574,1752024666952,-295.00468483,0.00021095,2]
[370454576,1752024666962,-460.0,0.00021095,2]
[370454578,1752024666972,-460.0,0.00021095,2]
[370454580,1752024666983,-460.0,0.00021095,2]
[370454582,1752024666993,-460.0,0.00021095,2]
[370454584,1752024667002,-460.0,0.00021095,2]
[370454586,1752024667012,-460.0,0.00021095,2]
[370454588,1752024667021,-460.0,0.00021095,2]
[370454590,1752024667032,-460.0,0.00021095,2]
[370454592,1752024667042,-486.41,0.00021095,2]
[370454594,1752024667051,-460.0,0.00021095,2]
[370454596,1752024667062,-460.0,0.00021095,2]
[370454598,1752024667072,-460.0,0.00021095,2]
[370454600,1752024667081,-460.0,0.00021095,2]
[370454602,1752024667091,-460.0,0.00021095,2]
[370454604,1752024667101,-460.0,0.00021095,2]
[370454606,1752024667111,-460.0,0.00021095,2]
[370454608,1752024667121,-203.97894514,0.00021095,2]
[370454610,1752024667131,-627.39,0.00021095,2]
[370454612,1752024667141,-460.0,0.00021095,2]
[370454614,1752024667151,-626.6,0.00021095,2]
[370454616,1752024667160,-460.0,0.00021095,2]
[370454618,1752024667169,-526.95,0.00021095,2]
[370454620,1752024667184,-460.0,0.00021095,2]
[370454622,1752024667193,-460.0,0.00021095,2]
[370454624,1752024667203,-360.25,0.00021095,2]
[370454626,1752024667213,-460.0,0.00021095,2]
[370454627,1752024667224,-460.0,0.00021095,2]
[370454630,1752024667234,-460.0,0.00021095,2]
[370454631,1752024667244,-460.0,0.00021095,2]
[370454633,1752024667254,-306.67274126,0.00021095,2]
[370454636,1752024667267,-172.48725874,0.00021095,2]
[370454638,1752024667277,-151.0,0.00021095,2]
[370454640,1752024667287,-293.190125,0.00021095,2]
[370454642,1752024667296,-460.0,0.00021095,2]
[370454644,1752024667305,-460.0,0.00021095,2]
[370454646,1752024667315,-517.5,0.00021095,2]
[370454648,1752024667324,-460.0,0.00021095,2]
[370454650,1752024667333,-198.32509506,0.00021095,2]
[370454652,1752024667346,-261.67490494,0.00021095,2]
[370454654,1752024667355,-1266.12,0.00021095,2]
[370454656,1752024667364,-460.0,0.00021095,2]
[370454658,1752024667374,-460.0,0.00021095,2]
[370454660,1752024667383,-306.00683556,0.00021095,2]
[370454662,1752024667392,-650.33,0.00021095,2]
[370454664,1752024667401,-460.0,0.00021095,2]
[370454666,1752024667411,-460.0,0.00021095,2]
[370454668,1752024667421,-984.36,0.00021095,2]
[370454669,1752024667430,-1837.66,0.00021095,2]
[370454670,1752024667439,-460.0,0.00021095,2]
[370454671,1752024667448,-460.0,0.00021095,2]
[370454672,1752024667457,-1105.11,0.00021095,2]
[370454673,1752024667466,-2659.58,0.00021095,2]
[370454674,1752024667475,-460.0,0.00021095,2]
[370454675,1752024667484,-460.0,0.00021095,2]
[370454676,1752024667493,-460.0,0.00021095,2]
[370454677,1752024667502,-460.0,0.00021095,2]
[370454678,1752024667513,-653.37,0.00021095,2]
[370454679,1752024667522,-460.0,0.00021095,2]
[370454680,1752024667532,-460.0,0.00021095,2]
[370454681,1752024667541,-916.57,0.00021095,2]
[370454682,1752024667550,-460.0,0.00021095,2]
[370454683,1752024667559,-3869.4,0.00021095,2]
[370454685,1752024667569,-460.0,0.00021095,2]
[370454687,1752024667578,-460.0,0.00021095,2]
[370454689,1752024667588,-460.0,0.00021095,2]
[370454691,1752024667597,-460.0,0.00021095,2]
[370454693,1752024667606,-105.34257164,0.00021095,2]
[370454695,1752024667618,-354.65742836,0.00021095,2]
[370454697,1752024667626,-460.0,0.00021095,2]
[370454699,1752024667636,-460.0,0.00021095,2]
[370454701,1752024667645,-151.0,0.00021095,2]
[370454703,1752024667655,-460.0,0.00021095,2]
[370454705,1752024667664,-314.33903673,0.00021095,2]
[370454708,1752024667676,-145.66096327,0.00021095,2]
[370454710,1752024667685,-575.59,0.00021095,2]
[370454712,1752024667695,-460.0,0.00021095,2]
[370454714,1752024667704,-460.0,0.00021095,2]
[370454716,1752024667714,-1799.14,0.00021095,2]
[370454718,1752024667723,-312.444814,0.00021095,2]
[370454720,1752024667732,-312.444814,0.00021095,2]
[370454722,1752024667742,-655.47,0.00021095,2]
[370454723,1752024667751,-460.0,0.00021095,2]
[370454725,1752024667762,-460.0,0.00021095,2]
[370454728,1752024667772,-460.0,0.00021095,2]
[370454729,1752024667781,-460.0,0.00021095,2]
[370454731,1752024667791,-460.0,0.00021095,2]
[370454734,1752024667801,-460.0,0.00021095,2]
[370454736,1752024667811,-848.32,0.00021095,2]
[370454738,1752024667821,-460.0,0.00021095,2]
[370454740,1752024667830,-2026.08,0.00021095,2]
[370454742,1752024667840,-460.0,0.00021095,2]
[370454743,1752024667849,-1189.31,0.00021095,2]
[370454746,1752024667858,-460.0,0.00021095,2]
[370454747,1752024667868,-460.0,0.00021095,2]
[370454750,1752024667878,-1728.35,0.00021095,2]
[370454752,1752024667887,-460.0,0.00021095,2]
[370454754,1752024667896,-1151.81,0.00021095,2]
[370454756,1752024667905,-460.0,0.00021095,2]
[370454758,1752024667915,-281.68,0.00021095,2]
[370454760,1752024667924,-460.0,0.00021095,2]
[370454762,1752024667934,-619.45,0.00021095,2]
[370454764,1752024667944,-1568.77,0.00021095,2]
[370454766,1752024667953,-460.0,0.00021095,2]
[370454768,1752024667961,-460.0,0.00021095,2]
[370454780,1752024668069,-460.0,0.00021095,2]
[370454782,1752024668079,-460.0,0.00021095,2]
[370454784,1752024668089,-1087.45,0.00021095,2]
[370454786,1752024668098,-206.72417044,0.00021095,2]
[370454788,1752024668107,-460.0,0.00021095,2]
[370454790,1752024668116,-460.0,0.00021095,2]
[370454792,1752024668125,-460.0,0.00021095,2]
[370454794,1752024668135,-1151.74,0.00021095,2]
[370454796,1752024668144,-460.0,0.00021095,2]
[370454798,1752024668153,-539.0,0.00021095,2]
[370454800,1752024668164,-460.0,0.00021095,2]
[370454802,1752024668174,-1034.12,0.00021095,2]
[370454804,1752024668187,-460.0,0.00021095,2]
[370454806,1752024668197,-460.0,0.00021095,2]
[370454808,1752024668207,-460.0,0.00021095,2]
[370454809,1752024668217,-460.0,0.00021095,2]
[370454812,1752024668227,-460.0,0.00021095,2]
[370454814,1752024668238,-3362.94,0.00021095,2]
[370454816,1752024668248,-460.0,0.00021095,2]
[370454818,1752024668260,-501.77,0.00021095,2]
[370454820,1752024668269,-709.81,0.00021095,2]
[370454822,1752024668279,-460.0,0.00021095,2]
[370454824,1752024668289,-460.0,0.00021095,2]
[370454826,1752024668300,-500.0,0.00021096,2]
[370454827,1752024668311,-151.0,0.000211,2]
[370454830,1752024668322,-151.0,0.000211,3]
[370454832,1752024668332,-500.0,0.00021124,2]
[370454834,1752024668342,-500.0,0.00021141,2]
[370454836,1752024668351,-151.0,0.00021141,2]
[370454838,1752024668363,-5253.8255359,0.00021141,4]
[370454840,1752024668374,-500.0,0.00021151,2]
[370454842,1752024668384,-500.0,0.00021237,2]
[370454843,1752024668395,-500.0,0.00021332,2]
[370454846,1752024668405,-5253.8255359,0.00021348,5]
[370454847,1752024668416,-319.3,0.00021369,2]
[370454849,1752024668426,-752.05,0.00021369,2]
[370454852,1752024668436,-460.0,0.00021369,2]
[370454854,1752024668446,-460.0,0.00021369,2]
[370454856,1752024668455,-151.0,0.00021369,2]
[370454857,1752024668466,-460.0,0.00021369,2]
[370454860,1752024668477,-460.0,0.00021369,2]
[370454862,1752024668488,-460.0,0.00021369,2]
[370454864,1752024668499,-460.0,0.00021369,2]
[370454866,1752024668510,-151.0,0.00021369,2]
[370454868,1752024668519,-537.49,0.00021369,2]
[370454869,1752024668531,-460.0,0.00021369,2]
[370454872,1752024668542,-407.30170349,0.00021369,2]
[370454873,1752024668551,-460.0,0.00021369,2]
[370454875,1752024668560,-460.0,0.00021369,2]
[370454878,1752024668571,-460.0,0.00021369,2]
[370454880,1752024668582,-460.0,0.00021369,2]
[370454882,1752024668592,-460.0,0.00021369,2]
[370454884,1752024668602,-293.17,0.00021369,2]
[370454886,1752024668612,-486.41,0.00021369,2]
[370454888,1752024668622,-460.0,0.00021369,2]
[370454890,1752024668632,-460.0,0.00021369,2]
[370454892,1752024668642,-600.62262217,0.00021369,2]
[370454894,1752024668652,-460.0,0.00021369,2]
[370454896,1752024668662,-460.0,0.00021369,2]
[370454898,1752024668672,-460.0,0.00021369,2]
[370454900,1752024668682,-221.64365544,0.00021369,2]
[370454902,1752024668693,-627.39,0.00021369,2]
[370454904,1752024668703,-460.0,0.00021369,2]
[370454906,1752024668713,-626.6,0.00021369,2]
[370454908,1752024668723,-460.0,0.00021369,2]
[370454910,1752024668734,-526.95,0.00021369,2]
[370454912,1752024668744,-460.0,0.00021369,2]
[370454914,1752024668753,-460.0,0.00021369,2]
[370454916,1752024668764,-460.0,0.00021369,2]
[370454918,1752024668774,-460.0,0.00021369,2]
[370454920,1752024668783,-460.0,0.00021369,2]
[370454922,1752024668793,-525.20988328,0.00021369,2]
[370454924,1752024668803,-460.0,0.00021369,2]
[370454926,1752024668812,-460.0,0.00021369,2]
[370454928,1752024668822,-517.5,0.00021369,2]
[370454930,1752024668830,-408.882375,0.00021369,2]
[370454932,1752024668840,-151.0,0.00021369,2]
[370454934,1752024668849,-408.882375,0.00021369,2]
[370454936,1752024668858,-151.0,0.00021369,2]
[370454938,1752024668867,-460.0,0.00021369,2]
[370454940,1752024668876,-151.0,0.00021369,2]
[370454942,1752024668886,-1266.12,0.00021369,2]
[370454944,1752024668895,-460.0,0.00021369,2]
[370454946,1752024668905,-460.0,0.00021369,2]
[370454948,1752024668915,-650.33,0.00021369,2]
[370454950,1752024668924,-460.0,0.00021369,2]
[370454952,1752024668933,-460.0,0.00021369,2]
[370454954,1752024668942,-984.36,0.00021369,2]
[370454956,1752024668952,-1837.66,0.00021369,2]
[370454958,1752024668961,-460.0,0.00021369,2]
[370454960,1752024668970,-460.0,0.00021369,2]
[370454962,1752024668981,-1105.11,0.00021369,2]
[370454964,1752024668990,-2659.58,0.00021369,2]
[370454966,1752024669000,-460.0,0.00021369,2]
[370454968,1752024669010,-460.0,0.00021369,2]
[370454970,1752024669019,-460.0,0.00021369,2]
[370454973,1752024669028,-460.0,0.00021369,2]
[370454975,1752024669038,-653.37,0.00021369,2]
[370454977,1752024669050,-460.0,0.00021369,2]
[370454979,1752024669059,-460.0,0.00021369,2]
[370454981,1752024669070,-916.57,0.00021369,2]
[370454983,1752024669080,-460.0,0.00021369,2]
[370454985,1752024669091,-3869.4,0.00021369,2]
[370454987,1752024669102,-460.0,0.00021369,2]
[370454988,1752024669112,-216.9213308,0.00021369,2]
[370454990,1752024669122,-460.0,0.00021369,2]
[370454992,1752024669131,-460.0,0.00021369,2]
[370454995,1752024669143,-460.0,0.00021369,2]
[370454996,1752024669154,-460.0,0.00021369,2]
[370454999,1752024669163,-460.0,0.00021369,2]
[370455001,1752024669175,-460.0,0.00021369,2]
[370455002,1752024669186,-575.59,0.00021369,2]
[370455004,1752024669195,-460.0,0.00021369,2]
[370455006,1752024669205,-460.0,0.00021369,2]
[370455009,1752024669214,-460.0,0.00021369,2]
[370455010,1752024669223,-1799.14,0.00021369,2]
[370455012,1752024669233,-655.47,0.00021369,2]
[370455014,1752024669242,-460.0,0.00021369,2]
[370455016,1752024669252,-460.0,0.00021369,2]
[370455019,1752024669264,-460.0,0.00021369,2]
[370455020,1752024669273,-460.0,0.00021369,2]
[370455023,1752024669283,-460.0,0.00021369,2]
[370455025,1752024669294,-460.0,0.00021369,2]
[370455027,1752024669303,-848.32,0.00021369,2]
[370455029,1752024669313,-460.0,0.00021369,2]
[370455031,1752024669323,-2026.08,0.00021369,2]
[370455033,1752024669333,-460.0,0.00021369,2]
[370455035,1752024669344,-1189.31,0.00021369,2]
[370455037,1752024669353,-460.0,0.00021369,2]
[370455039,1752024669363,-460.0,0.00021369,2]
[370455041,1752024669374,-1728.35,0.00021369,2]
[370455043,1752024669384,-460.0,0.00021369,2]
[370455045,1752024669394,-1151.81,0.00021369,2]
[370455047,1752024669404,-204.62,0.00021369,2]
[370455049,1752024669413,-619.45,0.00021369,2]
[370455051,1752024669422,-460.0,0.00021369,2]
[370455053,1752024669432,-1568.77,0.00021369,2]
[370455055,1752024669441,-460.0,0.00021369,2]
[370455057,1752024669450,-460.0,0.00021369,2]
[370455059,1752024669458,-460.0,0.00021369,2]
[370455061,1752024669468,-460.0,0.00021369,2]
[370455063,1752024669478,-1087.45,0.00021369,2]
[370455065,1752024669487,-460.0,0.00021369,2]
[370455067,1752024669497,-460.0,0.00021369,2]
[370455069,1752024669506,-1151.74,0.00021369,2]
[370455071,1752024669516,-460.0,0.00021369,2]
[370455073,1752024669526,-460.0,0.00021369,2]
[370455085,1752024669625,-775.46324492,0.00021369,2]
[370455088,1752024669641,-258.65675508,0.00021369,2]
[370455090,1752024669651,-16.90396632,0.00021369,2]
[370455092,1752024669663,-443.09603368,0.00021369,2]
[370455094,1752024669674,-98.97896632,0.00021369,2]
[370455097,1752024669686,-361.02103368,0.00021369,2]
[370455099,1752024669695,-460.0,0.00021369,2]
[370455101,1752024669704,-460.0,0.00021369,2]
[370455103,1752024669713,-469.07905321,0.00021369,2]
[370455106,1752024669736,-3362.94,0.00021369,2]
[370455108,1752024669747,-460.0,0.00021369,2]
[370455110,1752024669758,-267.01606397,0.00021369,2]
[370455113,1752024669773,-234.75393603,0.00021369,2]
[370455115,1752024669784,-709.81,0.00021369,2]
[370455117,1752024669795,-460.0,0.00021369,2]
[370455119,1752024669806,-460.0,0.00021369,2]
[370455121,1752024669816,-151.0,0.000214,4]
[370455123,1752024669827,-215.0738,0.00021415,2]
[370455125,1752024669837,-500.0,0.00021428,2]
[370455127,1752024669847,-2390.84432941,0.000215,2]
[370455129,1752024669857,-500.0,0.00021524,2]
[370455132,1752024669868,-5253.8255359,0.00021555,5]
[370455134,1752024669878,-151.0,0.000216,4]
[370455136,1752024669888,-641.0,0.000216,2]
[370455138,1752024669899,-500.0,0.00021619,2]
[370455140,1752024669909,-752.05,0.00021643,2]
[370455142,1752024669919,-151.0,0.00021643,2]
[370455144,1752024669929,-460.0,0.00021643,2]
[370455146,1752024669938,-151.0,0.00021643,2]
[370455148,1752024669948,-268.53037296,0.00021643,2]
[370455158,1752024670041,150.0,0.00017299,2]
[370455175,1752024670220,-476.40701246,0.00019178,2]
[370455177,1752024670231,-460.0,0.00019178,2]
[370455179,1752024670242,-461.83767093,0.00019178,2]
[370455182,1752024670253,-460.0,0.00019452,2]
[370455184,1752024670263,-465.5503423,0.00019726,2]
[370455186,1752024670273,-191.46962704,0.00021643,2]